[Event "Early-Titled-Tuesday-Blitz-November-28-2023"]
[Site "Chess.com"]
[Date "2023.11.28"]
[Round "2"]
[White "h4parah5"]
[Black "GatoRojo150"]
[Result "1-0"]
[WhiteElo "2947"]
[BlackElo "2604"]
[TimeControl "180+1"]
[EndTime "8:16:20 PST"]
[Termination "h4parah5 won by resignation"]

1. e4 {[%clk 0:03:00.9]} 1... e5 {[%clk 0:02:59.5]} 2. Nf3 {[%clk 0:02:59.2]}
2... Nc6 {[%clk 0:02:59.4]} 3. Nc3 {[%clk 0:02:57.9]} 3... Nf6 {[%clk
0:02:59.2]} 4. h3 {[%clk 0:02:58.5]} 4... Bb4 {[%clk 0:02:52.6]} 5. a3 {[%clk
0:02:57.4]} 5... Bxc3 {[%clk 0:02:43.7]} 6. dxc3 {[%clk 0:02:58.3]} 6... Nxe4
{[%clk 0:02:43.9]} 7. Nxe5 {[%clk 0:02:57.9]} 7... Nxe5 {[%clk 0:02:43.5]} 8.
Qd4 {[%clk 0:02:55.6]} 8... O-O {[%clk 0:02:39.9]} 9. Qxe4 {[%clk 0:02:54.8]}
9... d5 {[%clk 0:02:38.7]} 10. Qa4 {[%clk 0:02:50.8]} 10... Bd7 {[%clk
0:02:27.4]} 11. Qf4 {[%clk 0:02:46.3]} 11... Qe8 {[%clk 0:02:00.6]} 12. Be3
{[%clk 0:02:43.7]} 12... Ng6 {[%clk 0:01:31.6]} 13. Qxc7 {[%clk 0:02:40.9]}
13... Bb5 {[%clk 0:01:14.5]} 14. O-O-O {[%clk 0:02:37.8]} 14... Bxf1 {[%clk
0:00:48.9]} 15. Rhxf1 {[%clk 0:02:38.7]} 15... Qb5 {[%clk 0:00:48.6]} 16. Qc5
{[%clk 0:02:32.9]} 16... Qa4 {[%clk 0:00:17.1]} 17. Qxd5 {[%clk 0:02:29.9]}
17... Rad8 {[%clk 0:00:12.9]} 18. Qxd8 {[%clk 0:02:26.5]} 18... Rxd8 {[%clk
0:00:13.8]} 19. Rxd8+ {[%clk 0:02:25.4]} 19... Nf8 {[%clk 0:00:13.9]} 20. Bc5
{[%clk 0:02:25.5]} 20... Qf4+ {[%clk 0:00:14.4]} 21. Kb1 {[%clk 0:02:24.8]}
21... h5 {[%clk 0:00:14.5]} 22. Rxf8+ {[%clk 0:02:23.7]} 22... Kh7 {[%clk
0:00:14.1]} 23. Rd1 {[%clk 0:02:18.3]} 23... Qe4 {[%clk 0:00:10.3]} 24. g3
{[%clk 0:02:15.5]} 24... Qf3 {[%clk 0:00:09.7]} 25. Rd3 {[%clk 0:02:06.6]} 25...
Qh1+ {[%clk 0:00:08.1]} 26. Ka2 {[%clk 0:02:05.8]} 26... Qxh3 {[%clk 0:00:09]}
27. c4 {[%clk 0:02:00.5]} 27... Qg4 {[%clk 0:00:07.7]} 28. b3 {[%clk 0:01:58.1]}
28... Qe2 {[%clk 0:00:07.6]} 29. Kb2 {[%clk 0:01:57.2]} 29... Qe5+ {[%clk
0:00:07.4]} 30. Bd4 {[%clk 0:01:55.9]} 30... Qe7 {[%clk 0:00:07.7]} 31. Ra8
{[%clk 0:01:49.7]} 31... b6 {[%clk 0:00:07.6]} 32. Bc3 {[%clk 0:01:48.9]} 32...
Qe2 {[%clk 0:00:06.2]} 33. Rd2 {[%clk 0:01:47.7]} 33... Qe4 {[%clk 0:00:06]} 34.
Rxa7 {[%clk 0:01:47.2]} 34... Qf5 {[%clk 0:00:04.7]} 35. Rb7 {[%clk 0:01:46]}
35... Qe6 {[%clk 0:00:03.1]} 36. a4 {[%clk 0:01:44.2]} 36... Qc6 {[%clk
0:00:02.5]} 37. Rxf7 {[%clk 0:01:43.3]} 1-0

[Event "Early-Titled-Tuesday-Blitz-November-28-2023"]
[Site "Chess.com"]
[Date "2023.11.28"]
[Round "2"]
[White "TRadjabov"]
[Black "RobertJFischer71"]
[Result "1-0"]
[WhiteElo "3019"]
[BlackElo "2622"]
[TimeControl "180+1"]
[EndTime "8:16:24 PST"]
[Termination "TRadjabov won on time"]

1. c4 {[%clk 0:02:53.9]} 1... c6 {[%clk 0:02:59.9]} 2. b3 {[%clk 0:02:53.2]}
2... d5 {[%clk 0:03:00.1]} 3. Bb2 {[%clk 0:02:53.4]} 3... Nf6 {[%clk 0:03:00.4]}
4. Nf3 {[%clk 0:02:53.2]} 4... Nbd7 {[%clk 0:02:58.3]} 5. e3 {[%clk 0:02:51.4]}
5... e6 {[%clk 0:02:58.1]} 6. Nc3 {[%clk 0:02:51.3]} 6... Bd6 {[%clk 0:02:57.7]}
7. Qc2 {[%clk 0:02:51.8]} 7... Qe7 {[%clk 0:02:57.5]} 8. Be2 {[%clk 0:02:49.1]}
8... a6 {[%clk 0:02:56.4]} 9. g4 {[%clk 0:02:44.3]} 9... h6 {[%clk 0:02:48.5]}
10. Rg1 {[%clk 0:02:41.6]} 10... e5 {[%clk 0:02:43.4]} 11. cxd5 {[%clk
0:02:30.4]} 11... cxd5 {[%clk 0:02:44.3]} 12. g5 {[%clk 0:02:21.4]} 12... hxg5
{[%clk 0:02:36.3]} 13. Nxg5 {[%clk 0:02:21.3]} 13... e4 {[%clk 0:02:10.3]} 14.
O-O-O {[%clk 0:02:20.8]} 14... Ne5 {[%clk 0:01:08.8]} 15. f4 {[%clk 0:02:20.7]}
15... exf3 {[%clk 0:00:54]} 16. Nxf3 {[%clk 0:02:21.3]} 16... Neg4 {[%clk
0:00:51.2]} 17. Nd4 {[%clk 0:02:05.8]} 17... Nf2 {[%clk 0:00:30.7]} 18. Rdf1
{[%clk 0:02:04]} 18... Rxh2 {[%clk 0:00:29.7]} 19. Nf3 {[%clk 0:01:58.7]} 19...
Nh3 {[%clk 0:00:14.6]} 20. Rxg7 {[%clk 0:01:58.3]} 20... Rf2 {[%clk 0:00:10.7]}
21. Rxf2 {[%clk 0:01:51]} 21... Nxf2 {[%clk 0:00:11.6]} 22. Ng5 {[%clk
0:01:51.9]} 22... Be6 {[%clk 0:00:09.3]} 23. Nh7 {[%clk 0:01:32.8]} 23... Rc8
{[%clk 0:00:05.1]} 24. Nxf6+ {[%clk 0:01:30]} 24... Qxf6 {[%clk 0:00:06]} 25.
Rg8+ {[%clk 0:01:30.7]} 25... Bf8 {[%clk 0:00:03.4]} 26. Ba3 {[%clk 0:01:29.3]}
26... Kd7 {[%clk 0:00:01.3]} 27. Rxf8 {[%clk 0:01:28.6]} 27... Rxf8 {[%clk
0:00:01.4]} 28. Bxf8 {[%clk 0:01:29.3]} 1-0

[Event "Early-Titled-Tuesday-Blitz-November-28-2023"]
[Site "Chess.com"]
[Date "2023.11.28"]
[Round "2"]
[White "talaicito"]
[Black "viktorgen2021"]
[Result "0-1"]
[WhiteElo "2205"]
[BlackElo "2475"]
[TimeControl "180+1"]
[EndTime "8:16:24 PST"]
[Termination "viktorgen2021 won on time"]

1. d4 {[%clk 0:03:00.9]} 1... Nf6 {[%clk 0:02:57]} 2. Nc3 {[%clk 0:03:01.3]}
2... d5 {[%clk 0:02:55.1]} 3. Bf4 {[%clk 0:03:01.5]} 3... e6 {[%clk 0:02:53.3]}
4. e3 {[%clk 0:03:01.9]} 4... Bd6 {[%clk 0:02:49.3]} 5. Nf3 {[%clk 0:03:00.2]}
5... O-O {[%clk 0:02:47]} 6. Bd3 {[%clk 0:02:57.8]} 6... h6 {[%clk 0:02:46.6]}
7. O-O {[%clk 0:02:54.8]} 7... c5 {[%clk 0:02:46.2]} 8. dxc5 {[%clk 0:02:51.7]}
8... Bxf4 {[%clk 0:02:44.1]} 9. exf4 {[%clk 0:02:51.1]} 9... Qc7 {[%clk
0:02:43.3]} 10. Ne5 {[%clk 0:02:50]} 10... Qxc5 {[%clk 0:02:43.2]} 11. Re1
{[%clk 0:02:45.3]} 11... Nc6 {[%clk 0:02:43.1]} 12. a3 {[%clk 0:02:44.8]} 12...
Bd7 {[%clk 0:02:38.2]} 13. g4 {[%clk 0:02:35]} 13... Nxe5 {[%clk 0:02:27.4]} 14.
fxe5 {[%clk 0:02:31.9]} 14... Nh7 {[%clk 0:02:26.6]} 15. Qf3 {[%clk 0:02:21]}
15... Ng5 {[%clk 0:02:24.1]} 16. Qg2 {[%clk 0:02:06.2]} 16... d4 {[%clk
0:02:21.7]} 17. Ne4 {[%clk 0:01:31]} 17... Qe7 {[%clk 0:02:13.4]} 18. f4 {[%clk
0:01:21.6]} 18... Nxe4 {[%clk 0:02:03.7]} 19. Qxe4 {[%clk 0:01:20.8]} 19... g6
{[%clk 0:02:03.9]} 20. Qxd4 {[%clk 0:01:06.5]} 20... Bc6 {[%clk 0:02:01.8]} 21.
Qf2 {[%clk 0:01:03.4]} 21... Rad8 {[%clk 0:01:53.7]} 22. Rad1 {[%clk 0:00:55.7]}
22... Rd7 {[%clk 0:01:48.2]} 23. h4 {[%clk 0:00:38.3]} 23... Rfd8 {[%clk
0:01:44.8]} 24. f5 {[%clk 0:00:38]} 24... Rd4 {[%clk 0:01:39]} 25. Be2 {[%clk
0:00:21.7]} 25... Rxd1 {[%clk 0:01:32.4]} 26. Rxd1 {[%clk 0:00:21.4]} 26...
Rxd1+ {[%clk 0:01:29.4]} 27. Bxd1 {[%clk 0:00:21.3]} 27... exf5 {[%clk
0:01:29.3]} 28. gxf5 {[%clk 0:00:20.1]} 28... Qxe5 {[%clk 0:01:25.8]} 29. fxg6
{[%clk 0:00:19.2]} 29... fxg6 {[%clk 0:01:26.7]} 30. c3 {[%clk 0:00:18.2]} 30...
Qd5 {[%clk 0:01:24.6]} 0-1

[Event "Early-Titled-Tuesday-Blitz-November-28-2023"]
[Site "Chess.com"]
[Date "2023.11.28"]
[Round "2"]
[White "Crasmus"]
[Black "masterofpuppets2"]
[Result "0-1"]
[WhiteElo "2268"]
[BlackElo "2506"]
[TimeControl "180+1"]
[EndTime "8:16:27 PST"]
[Termination "masterofpuppets2 won by resignation"]

1. c4 {[%clk 0:03:00.9]} 1... e6 {[%clk 0:02:59.1]} 2. g3 {[%clk 0:03:01.8]}
2... d5 {[%clk 0:02:58.3]} 3. Bg2 {[%clk 0:03:02.7]} 3... Nf6 {[%clk 0:02:58.7]}
4. Nf3 {[%clk 0:03:03.1]} 4... Be7 {[%clk 0:02:56.8]} 5. d4 {[%clk 0:03:02.4]}
5... O-O {[%clk 0:02:56.7]} 6. O-O {[%clk 0:03:02.6]} 6... dxc4 {[%clk
0:02:57.3]} 7. Qc2 {[%clk 0:03:03]} 7... b5 {[%clk 0:02:57.2]} 8. a4 {[%clk
0:02:53]} 8... b4 {[%clk 0:02:56]} 9. Qxc4 {[%clk 0:02:52.6]} 9... Ba6 {[%clk
0:02:24.1]} 10. Qc2 {[%clk 0:02:52.7]} 10... c5 {[%clk 0:02:15]} 11. Rd1 {[%clk
0:02:15.7]} 11... Nbd7 {[%clk 0:02:07.9]} 12. Ne5 {[%clk 0:02:07]} 12... Rc8
{[%clk 0:01:55.1]} 13. Nc6 {[%clk 0:02:06.9]} 13... Qe8 {[%clk 0:01:54.7]} 14.
Nxa7 {[%clk 0:01:56.8]} 14... Rc7 {[%clk 0:01:54.1]} 15. Nc6 {[%clk 0:01:51.8]}
15... Bd6 {[%clk 0:01:40.1]} 16. dxc5 {[%clk 0:01:34.8]} 16... Bxc5 {[%clk
0:01:40.2]} 17. Bg5 {[%clk 0:01:34.5]} 17... Nd5 {[%clk 0:01:18.1]} 18. e4
{[%clk 0:01:24]} 18... N5b6 {[%clk 0:00:55.5]} 19. a5 {[%clk 0:01:23.1]} 19...
Nc8 {[%clk 0:00:44.8]} 20. e5 {[%clk 0:01:15]} 20... Kh8 {[%clk 0:00:41.2]} 21.
Rxd7 {[%clk 0:01:13]} 21... Qxd7 {[%clk 0:00:39.5]} 22. Na3 {[%clk 0:01:04.5]}
22... Rxc6 {[%clk 0:00:28]} 23. Bxc6 {[%clk 0:00:57.2]} 23... Qxc6 {[%clk
0:00:28.9]} 24. Rc1 {[%clk 0:00:56]} 24... bxa3 {[%clk 0:00:26.1]} 25. Qxc5
{[%clk 0:00:55.6]} 25... Qxc5 {[%clk 0:00:23.6]} 26. Rxc5 {[%clk 0:00:56.5]}
26... axb2 {[%clk 0:00:23.2]} 0-1

[Event "Early-Titled-Tuesday-Blitz-November-28-2023"]
[Site "Chess.com"]
[Date "2023.11.28"]
[Round "2"]
[White "simonachess"]
[Black "chess_blitz00"]
[Result "0-1"]
[WhiteElo "2253"]
[BlackElo "2502"]
[TimeControl "180+1"]
[EndTime "8:16:27 PST"]
[Termination "chess_blitz00 won by resignation"]

1. d4 {[%clk 0:00:57.2]} 1... d6 {[%clk 0:03:00.9]} 2. c4 {[%clk 0:00:56.9]}
2... g6 {[%clk 0:02:58.6]} 3. Nc3 {[%clk 0:00:57.8]} 3... Bg7 {[%clk 0:02:58.6]}
4. e4 {[%clk 0:00:58.1]} 4... c5 {[%clk 0:02:58.7]} 5. Be3 {[%clk 0:00:57.9]}
5... Nc6 {[%clk 0:02:55.5]} 6. Nge2 {[%clk 0:00:56.3]} 6... cxd4 {[%clk
0:02:52.6]} 7. Nxd4 {[%clk 0:00:56.3]} 7... Nf6 {[%clk 0:02:52.2]} 8. Be2 {[%clk
0:00:56.1]} 8... O-O {[%clk 0:02:47.9]} 9. O-O {[%clk 0:00:56.3]} 9... Bd7
{[%clk 0:02:11.2]} 10. Rc1 {[%clk 0:00:54.1]} 10... Rc8 {[%clk 0:01:45.7]} 11.
Kh1 {[%clk 0:00:47.9]} 11... a6 {[%clk 0:01:37.9]} 12. Qd2 {[%clk 0:00:45.4]}
12... Ne5 {[%clk 0:01:21.6]} 13. Nd5 {[%clk 0:00:36.5]} 13... Nxd5 {[%clk
0:01:08.3]} 14. cxd5 {[%clk 0:00:29.4]} 14... b5 {[%clk 0:01:07.6]} 15. b3
{[%clk 0:00:22.6]} 15... Ng4 {[%clk 0:01:03.1]} 16. Bg5 {[%clk 0:00:17.8]} 16...
h6 {[%clk 0:00:53.2]} 17. Bf4 {[%clk 0:00:16.8]} 17... Rxc1 {[%clk 0:00:46.2]}
18. Rxc1 {[%clk 0:00:16]} 18... Nxf2+ {[%clk 0:00:41.8]} 0-1

[Event "Early-Titled-Tuesday-Blitz-November-28-2023"]
[Site "Chess.com"]
[Date "2023.11.28"]
[Round "2"]
[White "GoltsevDmitry2000"]
[Black "crosky"]
[Result "1-0"]
[WhiteElo "2684"]
[BlackElo "2314"]
[TimeControl "180+1"]
[EndTime "8:16:30 PST"]
[Termination "GoltsevDmitry2000 won on time"]

1. e4 {[%clk 0:03:00]} 1... c6 {[%clk 0:03:00.3]} 2. d4 {[%clk 0:02:59.9]} 2...
d5 {[%clk 0:03:01.2]} 3. Nc3 {[%clk 0:02:59.5]} 3... dxe4 {[%clk 0:03:01.5]} 4.
Nxe4 {[%clk 0:03:00.4]} 4... Nf6 {[%clk 0:03:02.2]} 5. Qe2 {[%clk 0:03:00.5]}
5... Nxe4 {[%clk 0:02:57.5]} 6. Qxe4 {[%clk 0:03:01.4]} 6... Nd7 {[%clk
0:02:57.3]} 7. Nf3 {[%clk 0:03:01.9]} 7... Nf6 {[%clk 0:02:57.4]} 8. Qh4 {[%clk
0:03:02.6]} 8... Bf5 {[%clk 0:02:49.1]} 9. c3 {[%clk 0:03:00.3]} 9... e6 {[%clk
0:02:48.3]} 10. Ne5 {[%clk 0:02:59]} 10... Be7 {[%clk 0:02:47.5]} 11. Qg3 {[%clk
0:02:58]} 11... O-O {[%clk 0:02:21.3]} 12. Be2 {[%clk 0:02:57.6]} 12... Ne4
{[%clk 0:02:10.5]} 13. Qe3 {[%clk 0:02:51.2]} 13... Bg5 {[%clk 0:02:08.8]} 14.
f4 {[%clk 0:02:51.3]} 14... Bh4+ {[%clk 0:02:07.1]} 15. g3 {[%clk 0:02:51.6]}
15... Bf6 {[%clk 0:02:03.1]} 16. O-O {[%clk 0:02:51.1]} 16... h6 {[%clk
0:01:51.1]} 17. b3 {[%clk 0:02:42.5]} 17... c5 {[%clk 0:01:48.8]} 18. dxc5
{[%clk 0:02:37.8]} 18... Rc8 {[%clk 0:01:45.9]} 19. b4 {[%clk 0:02:36]} 19... a5
{[%clk 0:01:38.2]} 20. a3 {[%clk 0:02:35.6]} 20... Qc7 {[%clk 0:01:30]} 21. Nc4
{[%clk 0:02:22.7]} 21... Nxc3 {[%clk 0:01:21.7]} 22. Bb2 {[%clk 0:02:20.8]}
22... Bd4 {[%clk 0:01:19.8]} 23. Bxc3 {[%clk 0:02:12.1]} 23... Bxe3+ {[%clk
0:01:19.8]} 24. Nxe3 {[%clk 0:02:13]} 24... Be4 {[%clk 0:01:16.2]} 25. Be5
{[%clk 0:02:10.6]} 25... Qc6 {[%clk 0:01:12.5]} 26. Bd6 {[%clk 0:02:10.2]} 26...
Rfd8 {[%clk 0:01:12.2]} 27. b5 {[%clk 0:02:08.2]} 27... Qe8 {[%clk 0:01:04.5]}
28. Rfd1 {[%clk 0:02:02.8]} 28... f6 {[%clk 0:00:47.7]} 29. a4 {[%clk
0:01:55.2]} 29... Kh8 {[%clk 0:00:35.9]} 30. Nc4 {[%clk 0:01:52.4]} 30... e5
{[%clk 0:00:17.2]} 31. fxe5 {[%clk 0:01:46.6]} 31... fxe5 {[%clk 0:00:17.6]} 32.
Bg4 {[%clk 0:01:43]} 32... Ra8 {[%clk 0:00:10]} 33. Re1 {[%clk 0:01:30.4]} 33...
Qg6 {[%clk 0:00:06.4]} 34. Nxe5 {[%clk 0:01:30.2]} 1-0

[Event "Early-Titled-Tuesday-Blitz-November-28-2023"]
[Site "Chess.com"]
[Date "2023.11.28"]
[Round "2"]
[White "Witik"]
[Black "Kaua18"]
[Result "1-0"]
[WhiteElo "2799"]
[BlackElo "2541"]
[TimeControl "180+1"]
[EndTime "8:16:31 PST"]
[Termination "Witik won by resignation"]

1. e4 {[%clk 0:02:54.3]} 1... c6 {[%clk 0:02:59.4]} 2. d4 {[%clk 0:02:53.9]}
2... d5 {[%clk 0:03:00.3]} 3. exd5 {[%clk 0:02:54.5]} 3... cxd5 {[%clk
0:03:01.2]} 4. Bd3 {[%clk 0:02:54.8]} 4... Nc6 {[%clk 0:03:01.4]} 5. c3 {[%clk
0:02:54.8]} 5... Nf6 {[%clk 0:03:01.9]} 6. Bf4 {[%clk 0:02:53.4]} 6... g6 {[%clk
0:02:57.8]} 7. Nd2 {[%clk 0:02:51.1]} 7... Bg7 {[%clk 0:02:57.5]} 8. h3 {[%clk
0:02:51.2]} 8... O-O {[%clk 0:02:58]} 9. Ngf3 {[%clk 0:02:51.2]} 9... Re8 {[%clk
0:02:58.6]} 10. O-O {[%clk 0:02:49.9]} 10... Nh5 {[%clk 0:02:52.9]} 11. Bh2
{[%clk 0:02:47.5]} 11... e5 {[%clk 0:02:45.1]} 12. dxe5 {[%clk 0:02:47.1]} 12...
Nxe5 {[%clk 0:02:43.9]} 13. Bxe5 {[%clk 0:02:44.7]} 13... Bxe5 {[%clk
0:02:43.2]} 14. Nxe5 {[%clk 0:02:36.7]} 14... Rxe5 {[%clk 0:02:44.1]} 15. Nf3
{[%clk 0:02:37.3]} 15... Re8 {[%clk 0:02:43]} 16. Re1 {[%clk 0:02:24.7]} 16...
Nf4 {[%clk 0:02:37.4]} 17. Rxe8+ {[%clk 0:02:21.2]} 17... Qxe8 {[%clk
0:02:37.2]} 18. Bf1 {[%clk 0:02:22.1]} 18... Bf5 {[%clk 0:02:32.6]} 19. Qd2
{[%clk 0:02:15.7]} 19... Qb8 {[%clk 0:02:24]} 20. Nd4 {[%clk 0:02:12.1]} 20...
Bd7 {[%clk 0:02:05.8]} 21. Re1 {[%clk 0:02:10.3]} 21... Qd6 {[%clk 0:02:04.5]}
22. h4 {[%clk 0:01:50.2]} 22... a6 {[%clk 0:02:01.3]} 23. g3 {[%clk 0:01:50.3]}
23... Ne6 {[%clk 0:01:57.1]} 24. Bg2 {[%clk 0:01:47.2]} 24... Rd8 {[%clk
0:01:54.5]} 25. h5 {[%clk 0:01:46.5]} 25... Re8 {[%clk 0:01:36.5]} 26. h6 {[%clk
0:01:40.2]} 26... Nc5 {[%clk 0:01:30.4]} 27. Rxe8+ {[%clk 0:01:37]} 27... Bxe8
{[%clk 0:01:31.3]} 28. Qg5 {[%clk 0:01:34.3]} 28... Bc6 {[%clk 0:00:47.9]} 29.
Nf5 {[%clk 0:01:26.2]} 29... Qe6 {[%clk 0:00:47.9]} 30. Qd8+ {[%clk 0:01:24.4]}
30... Qe8 {[%clk 0:00:47.8]} 31. Qf6 {[%clk 0:01:08.8]} 31... Ne6 {[%clk
0:00:28.4]} 32. Ne7+ {[%clk 0:01:07.8]} 32... Kf8 {[%clk 0:00:28.9]} 33. Nxg6+
{[%clk 0:01:08]} 33... hxg6 {[%clk 0:00:24.9]} 34. h7 {[%clk 0:01:08.2]} 1-0

[Event "Early-Titled-Tuesday-Blitz-November-28-2023"]
[Site "Chess.com"]
[Date "2023.11.28"]
[Round "2"]
[White "djano"]
[Black "Alexander_Donchenko"]
[Result "0-1"]
[WhiteElo "2565"]
[BlackElo "2866"]
[TimeControl "180+1"]
[EndTime "8:16:33 PST"]
[Termination "Alexander_Donchenko won by resignation"]

1. e4 {[%clk 0:03:00.9]} 1... e5 {[%clk 0:02:59.1]} 2. Nf3 {[%clk 0:03:00.8]}
2... Nc6 {[%clk 0:02:59.7]} 3. d4 {[%clk 0:03:01]} 3... exd4 {[%clk 0:02:59.6]}
4. Nxd4 {[%clk 0:03:01.9]} 4... Nf6 {[%clk 0:02:59.9]} 5. Nxc6 {[%clk
0:03:01.8]} 5... bxc6 {[%clk 0:03:00.7]} 6. Nd2 {[%clk 0:03:01.1]} 6... d5
{[%clk 0:02:59.8]} 7. exd5 {[%clk 0:03:01]} 7... cxd5 {[%clk 0:03:00.7]} 8. Bd3
{[%clk 0:02:52.4]} 8... Bd6 {[%clk 0:03:00.2]} 9. O-O {[%clk 0:02:52.1]} 9...
O-O {[%clk 0:03:00.4]} 10. h3 {[%clk 0:02:48.1]} 10... c5 {[%clk 0:02:57.9]} 11.
b3 {[%clk 0:02:47.8]} 11... a5 {[%clk 0:02:48.6]} 12. Bb2 {[%clk 0:02:47.4]}
12... a4 {[%clk 0:02:48.6]} 13. Qf3 {[%clk 0:02:44.6]} 13... Be6 {[%clk
0:02:44.8]} 14. Rfe1 {[%clk 0:02:40.7]} 14... Re8 {[%clk 0:02:35.7]} 15. c4
{[%clk 0:02:35.5]} 15... d4 {[%clk 0:02:32.8]} 16. Nf1 {[%clk 0:02:18.6]} 16...
Rb8 {[%clk 0:02:24.5]} 17. Bc2 {[%clk 0:02:11.8]} 17... Bxc4 {[%clk 0:02:16.8]}
18. Ng3 {[%clk 0:01:55.7]} 18... Bd5 {[%clk 0:02:14.7]} 19. Qf5 {[%clk
0:01:55.6]} 19... axb3 {[%clk 0:02:07.3]} 20. axb3 {[%clk 0:01:50.1]} 20...
Rxe1+ {[%clk 0:02:06]} 21. Rxe1 {[%clk 0:01:49.3]} 21... Bxb3 {[%clk 0:02:05]}
22. Bxb3 {[%clk 0:01:21.7]} 22... Rxb3 {[%clk 0:02:05.9]} 23. Bc1 {[%clk
0:01:22.3]} 23... Bxg3 {[%clk 0:02:00.8]} 24. fxg3 {[%clk 0:01:21.6]} 24... d3
{[%clk 0:02:00.2]} 25. Qxc5 {[%clk 0:01:14.8]} 25... h6 {[%clk 0:01:57]} 26. Bd2
{[%clk 0:01:13]} 26... Rb2 {[%clk 0:01:55.5]} 27. Qc3 {[%clk 0:01:10.4]} 27...
Rc2 {[%clk 0:01:54.7]} 28. Qb4 {[%clk 0:01:02.5]} 28... Qd5 {[%clk 0:01:52.7]}
29. Kh2 {[%clk 0:00:43.2]} 29... Kh7 {[%clk 0:01:51]} 30. Re3 {[%clk 0:00:39.3]}
30... h5 {[%clk 0:01:36.9]} 31. Rf3 {[%clk 0:00:38.7]} 31... Ne4 {[%clk
0:01:32.1]} 32. Bf4 {[%clk 0:00:16.6]} 32... d2 {[%clk 0:01:31.7]} 33. Bxd2
{[%clk 0:00:16.7]} 33... Rxd2 {[%clk 0:01:30]} 34. Qb1 {[%clk 0:00:11]} 34... f5
{[%clk 0:01:28.5]} 35. Rf4 {[%clk 0:00:06.5]} 35... Rxg2+ {[%clk 0:01:25.9]} 36.
Kxg2 {[%clk 0:00:05.5]} 36... Nd2+ {[%clk 0:01:26]} 0-1

[Event "Early-Titled-Tuesday-Blitz-November-28-2023"]
[Site "Chess.com"]
[Date "2023.11.28"]
[Round "2"]
[White "Hasangatin_Ramil"]
[Black "NCchamp"]
[Result "1-0"]
[WhiteElo "2691"]
[BlackElo "2346"]
[TimeControl "180+1"]
[EndTime "8:16:34 PST"]
[Termination "Hasangatin_Ramil won by resignation"]

1. e4 {[%clk 0:03:00.9]} 1... c6 {[%clk 0:02:59.4]} 2. Nf3 {[%clk 0:03:00.5]}
2... d5 {[%clk 0:03:00.3]} 3. d3 {[%clk 0:03:01]} 3... dxe4 {[%clk 0:02:59.8]}
4. dxe4 {[%clk 0:03:01.9]} 4... Qxd1+ {[%clk 0:02:59.3]} 5. Kxd1 {[%clk
0:03:02.8]} 5... Bg4 {[%clk 0:02:57.7]} 6. Be2 {[%clk 0:03:02.4]} 6... Nd7
{[%clk 0:02:53.5]} 7. Nfd2 {[%clk 0:03:01.9]} 7... Bxe2+ {[%clk 0:02:53]} 8.
Kxe2 {[%clk 0:03:02.8]} 8... Ngf6 {[%clk 0:02:46.4]} 9. f3 {[%clk 0:03:02.3]}
9... e6 {[%clk 0:02:46.2]} 10. Nb3 {[%clk 0:03:02.9]} 10... Bd6 {[%clk
0:02:42.3]} 11. Be3 {[%clk 0:03:02.1]} 11... Ke7 {[%clk 0:02:40]} 12. N1d2
{[%clk 0:03:01.7]} 12... b6 {[%clk 0:02:35]} 13. a4 {[%clk 0:03:01.9]} 13... c5
{[%clk 0:02:34.9]} 14. Nc4 {[%clk 0:03:00.9]} 14... Bc7 {[%clk 0:02:34.3]} 15.
g4 {[%clk 0:02:57.9]} 15... Ne5 {[%clk 0:02:29]} 16. Ncd2 {[%clk 0:02:50.2]}
16... h6 {[%clk 0:02:18.8]} 17. h3 {[%clk 0:02:49.1]} 17... Nfd7 {[%clk
0:02:07.3]} 18. f4 {[%clk 0:02:45.5]} 18... Nc6 {[%clk 0:02:07.4]} 19. Nc4
{[%clk 0:02:45]} 19... Nb4 {[%clk 0:02:05.5]} 20. Rhc1 {[%clk 0:02:37.7]} 20...
Rhd8 {[%clk 0:01:53.3]} 21. c3 {[%clk 0:02:37.4]} 21... Nc6 {[%clk 0:01:53]} 22.
Rd1 {[%clk 0:02:31]} 22... Nf8 {[%clk 0:01:53.3]} 23. a5 {[%clk 0:02:30.8]}
23... Ng6 {[%clk 0:01:44.1]} 24. Rxd8 {[%clk 0:02:27.2]} 24... Rxd8 {[%clk
0:01:27]} 25. axb6 {[%clk 0:02:24.9]} 25... axb6 {[%clk 0:01:27.3]} 26. e5
{[%clk 0:02:25.3]} 26... f6 {[%clk 0:01:08.2]} 27. Ra6 {[%clk 0:02:19.4]} 27...
fxe5 {[%clk 0:01:05.2]} 28. f5 {[%clk 0:02:18.9]} 28... exf5 {[%clk 0:01:04.7]}
29. gxf5 {[%clk 0:02:19.4]} 29... Nf4+ {[%clk 0:01:03.3]} 30. Bxf4 {[%clk
0:02:18.3]} 30... exf4 {[%clk 0:01:04.2]} 31. Nxc5 {[%clk 0:02:12.1]} 31... bxc5
{[%clk 0:00:45.3]} 32. Rxc6 {[%clk 0:02:13]} 32... Rd7 {[%clk 0:00:28]} 33. Rxc5
{[%clk 0:02:07.4]} 33... Kf6 {[%clk 0:00:28.1]} 34. b4 {[%clk 0:02:03.4]} 34...
Re7+ {[%clk 0:00:27.5]} 35. Kf3 {[%clk 0:02:02.3]} 35... Rd7 {[%clk 0:00:27.7]}
36. Ke2 {[%clk 0:01:51.8]} 36... Re7+ {[%clk 0:00:27.5]} 37. Kf2 {[%clk
0:01:51.7]} 37... Be5 {[%clk 0:00:17.1]} 38. Nxe5 {[%clk 0:01:44.6]} 38... Rxe5
{[%clk 0:00:18]} 39. Rxe5 {[%clk 0:01:44.4]} 39... Kxe5 {[%clk 0:00:18.9]} 40.
b5 {[%clk 0:01:44.9]} 40... Kxf5 {[%clk 0:00:15]} 41. b6 {[%clk 0:01:44.7]}
41... g5 {[%clk 0:00:11.2]} 42. b7 {[%clk 0:01:44.8]} 42... g4 {[%clk
0:00:12.1]} 1-0